fUST/lending_fUST_20240710
["ID","MTS","AMOUNT","RATE_DAILY","PERIOD"]
[331579936,1720540803424,986.6027149,0.00014999,2]
[331579940,1720540891626,580.67644492,0.00014999,2]
[331579947,1720541038432,160.04606779,0.00014999,2]
[331580017,1720541438535,-166.666666,0.00018057,2]
[331580019,1720541438546,-166.666666,0.00018549,2]
[331580021,1720541438556,-191.12784748,0.00018798,2]
[331580022,1720541438568,-214.70813848,0.00018798,2]
[331580023,1720541438578,-740.9776396,0.000189,2]
[331580024,1720541438587,-167.63633337,0.00019,2]
[331580063,1720541440488,-29.66943244,0.00019,2]
[331580065,1720541440498,-1000.0,0.00019,6]
[331580066,1720541440508,-813.14107465,0.00019039,3]
[331580067,1720541440517,-250.0,0.00019041,2]
[331580068,1720541440527,-166.666666,0.00019041,2]
[331580069,1720541440536,-162.529955,0.00019178,2]
[331580070,1720541440546,-162.693434,0.00019178,2]
[331580071,1720541440555,-366.61198732,0.00019503,2]
[331580072,1720541440565,-166.666666,0.00019533,2]
[331580073,1720541440574,-150.0,0.00019553,2]
[331580074,1720541440584,-5292.21400908,0.00019721,2]
[331580075,1720541440593,-1940.17760531,0.000199,2]
[331580076,1720541440603,-2000.0,0.000199,2]
[331580077,1720541440613,-307.62722383,0.00019979,2]
[331580078,1720541440623,-217.43779142,0.00019979,2]
[331580080,1720541440632,-18475.80894447,0.0001998,2]
[331580082,1720541440644,-25742.26382463,0.0001998,2]
[331580083,1720541440654,-92345.58812233,0.0001999,2]
[331580168,1720541446703,-371.39375676,0.000199,2]
[331580170,1720541550905,357.69025485,0.00013023,2]
[331580171,1720541551248,357.69025485,0.00013159,2]
[331580172,1720541551467,5214.05613693,0.00013674,2]
[331580173,1720541551636,295.46336225,0.00013545,2]
[331580174,1720541551658,62.2268926,0.00013545,2]
[331580175,1720541552967,357.69025485,0.00013745,2]
[331580176,1720541553034,5214.05613693,0.00013708,2]
[331580177,1720541553447,357.69025485,0.00014057,2]
[331580178,1720541553520,5214.05613693,0.00014024,2]
[331580179,1720541553675,357.69025485,0.00014354,2]
[331580180,1720541553705,5214.05613693,0.00014483,2]
[331580181,1720541554250,357.69025485,0.00014564,2]
[331580182,1720541554309,5214.05613693,0.00014671,2]
[331580183,1720541554613,357.69025485,0.00015011,2]
[331580184,1720541554882,5214.05613693,0.00015013,2]
[331580185,1720541555460,5214.05613693,0.00015332,2]
[331580186,1720541555568,357.69025485,0.0001529,2]
[331580187,1720541555942,5214.05613693,0.00015425,2]
[331580188,1720541555971,357.69025485,0.00015506,2]
[331580189,1720541556646,5214.05613693,0.00015727,2]
[331580190,1720541556743,357.69025485,0.00015764,2]
[331580194,1720541686435,5214.05613693,0.00015599,2]
[331580195,1720541686867,5214.05613693,0.00015803,2]
[331580196,1720541688122,357.69025485,0.00014879,2]
[331580197,1720541688552,357.69025485,0.00015341,2]
[331580198,1720541688960,357.69025485,0.00015363,2]
[331580199,1720541689309,357.69025485,0.000158,2]
[331580200,1720541689718,357.69025485,0.00015944,2]
[331580202,1720541811211,5214.05613693,0.00015677,2]
[331580203,1720541811594,5214.05613693,0.00015909,2]
[331580206,1720541936443,357.69025486,0.00015994,2]
[331580207,1720541937686,5214.05613693,0.00015915,2]
[331580214,1720542180053,357.69025486,0.00015952,2]
[331580411,1720542638643,-154.62117811,0.00016255,2]
[331580412,1720542638653,-357.69025486,0.00016368,2]
[331580413,1720542638663,-166.666666,0.00016438,2]
[331580414,1720542638673,-357.69025486,0.00016702,2]
[331580415,1720542638683,-166.666666,0.00016823,2]
[331580416,1720542638693,-276.64310743,0.00016832,2]
[331580417,1720542638704,-357.69025486,0.00016896,2]
[331580418,1720542638782,-166.666666,0.00017208,2]
[331580419,1720542638792,-357.69025486,0.0001722,2]
[331580420,1720542638804,-357.69025486,0.00017417,2]
[331580421,1720542638813,-357.69025486,0.00017582,2]
[331580422,1720542638823,-166.666666,0.00017592,2]
[331580423,1720542638833,-357.69025486,0.00017821,2]
[331580424,1720542638843,-320.34430196,0.00017958,10]
[331580425,1720542638852,-166.666666,0.00017977,2]
[331580426,1720542638862,-357.69025486,0.00018216,2]
[331580427,1720542638872,-166.666666,0.00018362,2]
[331580428,1720542638882,-357.69025486,0.00018568,2]
[331580429,1720542638893,-357.69025486,0.00018744,2]
[331580430,1720542638903,-191.12784748,0.00018798,2]
[331580431,1720542638913,-2000.0,0.0001889,2]
[331580432,1720542638923,-493.98509306,0.000189,2]
[331580433,1720542638933,-679.24882439,0.000189,2]
[331580434,1720542638943,-769.37758216,0.00018939,2]
[331580435,1720542638953,-43294.2823218,0.0001899,2]
[331580436,1720542638963,-197.30576581,0.00019,2]
[331580437,1720542638973,-101153.35815478,0.00019,2]
[331580438,1720542638983,-151.44589054,0.00019033,2]
[331580439,1720542638992,-813.14107465,0.00019039,3]
[331580440,1720542639002,-250.0,0.00019041,2]
[331580441,1720542639013,-357.69025486,0.00019073,2]
[331580442,1720542639022,-679.24882439,0.00019345,2]
[331580443,1720542639031,-150.0,0.00019362,2]
[331580444,1720542639041,-357.69025486,0.00019412,2]
[331580445,1720542639050,-357.69025486,0.00019509,2]
[331580446,1720542639060,-288.02479007,0.00019558,2]
[331580447,1720542639070,-5292.21400908,0.00019709,2]
[331580448,1720542639080,-679.24882439,0.0001979,2]
[331580449,1720542639090,-43294.2823218,0.0001988,2]
[331580450,1720542639099,-48549.04775494,0.0001989,2]
[331580451,1720542639109,-246.96220773,0.00019989,2]
[331580452,1720542639118,-163.35043484,0.00019989,2]
[331580453,1720542639128,-500.0,0.00019989,2]
[331580454,1720542639138,-500.0,0.00019989,2]
[331580455,1720542639148,-500.0,0.00019989,2]
[331580456,1720542639158,-488.53505433,0.00019989,2]
[331580457,1720542639167,-500.0,0.00019989,2]
[331580458,1720542639177,-541.99139753,0.00019989,2]
[331580459,1720542639186,-500.0,0.00019989,2]
[331580460,1720542639196,-500.0,0.00019989,2]
[331580461,1720542639206,-500.0,0.00019989,2]
[331580462,1720542639215,-500.0,0.00019989,2]
[331580463,1720542639225,-500.0,0.00019989,2]
[331580464,1720542639235,-500.0,0.00019989,2]
[331580465,1720542639245,-500.0,0.00019989,2]
[331580466,1720542639256,-565.35902919,0.00019989,2]
[331580467,1720542639266,-375.13917037,0.00019989,2]
[331580468,1720542639277,-500.0,0.00019989,2]
[331580469,1720542639288,-158.132923,0.0001999,2]
[331580470,1720542639298,-151.0,0.0001999,2]
[331580471,1720542639308,-151.0,0.0001999,2]
[331580472,1720542639319,-129882.846966,0.0001999,2]
[331580473,1720542639329,-151.0,0.0001999,2]
[331580474,1720542639339,-151.0,0.00019995,2]
[331580475,1720542639350,-21004.02252795,0.0002,2]
[331580476,1720542639360,-428.24738691,0.0002,2]
[331580477,1720542639370,-225.71833691,0.0002,2]
[331580478,1720542639380,-154.60575532,0.0002,2]
[331580479,1720542639391,-42609.10822518,0.0002,2]
[331580484,1720542640657,-10337.6286296,0.0002,2]
[331580485,1720542640679,-4855.00134939,0.0002,2]
[331580486,1720542640697,-4272.70076566,0.0002,2]
[331580487,1720542640716,-49117.796117,0.0002,2]
[331580488,1720542640738,-6207.88017944,0.0002,2]
[331580489,1720542640759,-153.95020535,0.0002,2]
[331580490,1720542640779,-154.84561839,0.0002,2]
[331580491,1720542640796,-173.89617722,0.0002,2]
[331580492,1720542640811,-293.45867215,0.0002,2]
[331580493,1720542640830,-151.0,0.0002,2]
[331580494,1720542640849,-151.0,0.0002,2]
[331580495,1720542640865,-357.69025486,0.00020125,2]
[331580496,1720542640879,-394.71157965,0.000203,2]
[331580497,1720542640897,-357.69025486,0.00020335,2]
[331580498,1720542640912,-769.37758213,0.00020424,2]
[331580499,1720542640927,-357.69025486,0.00020653,2]
[331580500,1720542640942,-357.69025486,0.00020838,2]
[331580501,1720542640960,-257.48286569,0.00021,2]
[331580502,1720542640975,-10104.88919973,0.00021,2]
[331580503,1720542640990,-151.0,0.00021041,2]
[331580504,1720542641005,-750.0,0.00021096,2]
[331580505,1720542641020,-168.674094,0.00021096,2]
[331580506,1720542641035,-357.69025486,0.00021221,2]
[331580507,1720542641048,-357.69025487,0.0002157,2]
[331580508,1720542641063,-27476.41738239,0.00021887,3]
[331580597,1720542643779,-2865.79570429,0.00021887,3]
[331580800,1720543318051,1159.23553938,0.00014999,2]
[331580802,1720543332779,885.77863089,0.00014999,2]
[331580803,1720543345484,3132.18181723,0.00014999,4]
[331580805,1720543356821,2134.25192714,0.00014999,2]
[331580806,1720543364786,1105.68240453,0.00015,2]
[331580809,1720543406444,1500.0,0.00014999,2]
[331580810,1720543411269,518.03647258,0.00014999,2]
[331580811,1720543415583,599.04566401,0.00014999,2]
[331580812,1720543418535,949.73040029,0.00015,2]
[331580813,1720543419037,766.51384343,0.00015,2]
[331580814,1720543435011,532.34024219,0.00014999,2]
[331580817,1720543473620,790.41155196,0.00014999,2]
[331580818,1720543476822,304.32701523,0.00014999,2]
[331580821,1720543518896,733.2650575,0.00014999,2]
[331580823,1720543525500,3132.18181723,0.00014999,4]
[331580825,1720543533118,379.87936739,0.00015,2]
[331580827,1720543561593,205.81415328,0.00014999,2]
[331580829,1720543566306,177.98182071,0.00014999,2]
[331580830,1720543567013,262.5701289,0.00015,2]
[331580831,1720543586052,326.29892832,0.00015,2]
[331580832,1720543592956,317.82222775,0.00014999,2]
[331580835,1720543638435,554.63473576,0.00014999,2]
[331580836,1720543652866,272.73668722,0.00014999,2]
[331580838,1720543682271,162.3420948,0.00014999,2]
[331580839,1720543685545,3126.86122348,0.00014999,4]
[331580841,1720543701530,212.91402171,0.00014999,2]
[331580848,1720543807421,200.97791328,0.00014999,2]
[331580881,1720543831793,-154.63660398,0.00016255,2]
[331580882,1720543831803,-458.37844922,0.00016255,2]
[331580883,1720543831815,-276.64310743,0.00016972,2]
[331580884,1720543831824,-166.666666,0.00018357,2]
[331580885,1720543831834,-274.132111,0.00018756,2]
[331580886,1720543831844,-191.12784748,0.00018798,2]
[331580887,1720543831855,-309.18067122,0.00018798,2]
[331580888,1720543831864,-817.100059,0.00018804,2]
[331580889,1720543831874,-166.666666,0.00018857,2]
[331580890,1720543831885,-329.32339538,0.000189,2]
[331580891,1720543831894,-813.14107465,0.00019039,3]
[331580892,1720543831907,-197.30576581,0.00019039,2]
[331580893,1720543831916,-250.0,0.00019041,2]
[331580894,1720543831926,-162.547627,0.00019178,2]
[331580895,1720543831936,-162.669428,0.00019178,2]
[331580896,1720543831947,-166.666666,0.00019358,2]
[331580897,1720543831958,-166.666666,0.00019858,2]
[331580898,1720543831967,-6207.88017944,0.0002,2]
[331580899,1720543831976,-153.95020535,0.0002,2]
[331580900,1720543831985,-154.84561839,0.0002,2]
[331580901,1720543831994,-435.0,0.0002,2]
[331580902,1720543832004,-154.62117811,0.0002,2]
[331580903,1720543832013,-173.89617722,0.0002,2]
[331580904,1720543832022,-394.71157965,0.000203,2]
[331580905,1720543832032,-166.666666,0.00020359,2]
[331580906,1720543832040,-293.45867215,0.00020543,2]
[331580907,1720543832049,-166.666666,0.00020859,2]
[331580908,1720543832058,-257.48286569,0.00021,2]
[331580909,1720543832067,-6937.91720699,0.00021,2]
[331580920,1720543837785,-1159.23553938,0.00016255,2]
[331580921,1720543837795,-3166.97199274,0.00021,2]
[331580922,1720543837805,-480.58413822,0.00021095,2]
[331580923,1720543837815,-707.831476,0.00021096,2]
[331580924,1720543837825,-188.646553,0.00021096,2]
[331580925,1720543837834,-279.40077091,0.000212,2]
[331580926,1720543837844,-366.61198732,0.00021267,2]
[331580927,1720543837854,-5292.21400908,0.00021295,2]
[331580928,1720543837864,-2578.2088657,0.00021738,2]
[331580929,1720543837936,-150.0,0.00021756,2]
[331580930,1720543837946,-225.71833691,0.00021887,2]
[331580931,1720543837956,-2033.62283628,0.00021887,2]
[331580932,1720543837968,-2583.26638813,0.00021887,2]
[331580933,1720543837980,-2246.9857081,0.00021887,2]
[331580934,1720543837990,-763.79636746,0.00021887,2]
[331580935,1720543838000,-1000.0,0.00021887,2]
[331580936,1720543838012,-428.24738691,0.00021887,2]
[331580937,1720543838022,-1065.65690458,0.00021917,2]
[331580938,1720543838032,-312.91526637,0.00021917,2]
[331580939,1720543838042,-880.11608907,0.00022234,2]
[331580940,1720543838052,-6545.91740772,0.00023,2]
[331580941,1720543838062,-301.75849603,0.00023,2]
[331580942,1720543838072,-155.0,0.0002323,4]
[331580943,1720543838082,-329.32339538,0.000239,2]
[331580944,1720543838092,-1000.0,0.00024,24]
[331580945,1720543838102,-1010.535041,0.000244,2]
[331580946,1720543838112,-160.0,0.0002458,7]
[331580947,1720543838122,-2000.0,0.0002469,2]
[331580948,1720543838132,-2413.33049809,0.000247,2]
[331580949,1720543838143,-161.97,0.00024768,3]
[331580950,1720543838154,-485.96,0.00024768,3]
[331580951,1720543838166,-6745.98,0.00024768,3]
[331580952,1720543838176,-67338.5686433,0.00024778,3]
[331580953,1720543838186,-169.796632,0.00024779,7]
[331580954,1720543838196,-33669.2843216,0.0002478,3]
[331580955,1720543838206,-341.97453803,0.00024787,2]
[331580956,1720543838216,-172.87354541,0.00024787,2]
[331580957,1720543838226,-500.0,0.00024787,2]
[331580958,1720543838236,-500.0,0.00024787,2]
[331580959,1720543838246,-500.0,0.00024787,2]
[331580960,1720543838255,-341.99139752,0.00024787,2]
[331580961,1720543838269,-500.0,0.00024787,2]
[331580962,1720543838279,-500.0,0.00024787,2]
[331580963,1720543838289,-500.0,0.00024787,2]
[331580964,1720543838299,-500.0,0.00024787,2]
[331580965,1720543838309,-500.0,0.00024787,2]
[331580966,1720543838319,-500.0,0.00024787,2]
[331580967,1720543838329,-500.0,0.00024787,2]
[331580968,1720543838339,-311.80645744,0.00024787,2]
[331580969,1720543838350,-500.0,0.00024787,2]
[331580970,1720543838359,-130862.81986194,0.00024788,2]
[331580971,1720543838370,-33669.2843216,0.0002479,3]
[331580972,1720543838381,-42884.0,0.000248,2]
[331580973,1720543838391,-151.0,0.000248,7]
[331580974,1720543838402,-5502.465161,0.000248,7]
[331580975,1720543838412,-5502.465161,0.000248,7]
[331580976,1720543838422,-241.3889,0.00024807,2]
[331580977,1720543838432,-313.87500217,0.00024815,2]
[331580978,1720543838443,-2413.33049809,0.00024875,2]
[331580979,1720543838452,-1000.0,0.00024886,2]
[331580980,1720543838461,-373.0,0.000249,2]
[331580981,1720543838471,-3000.0,0.000249,2]
[331580982,1720543838482,-150.0,0.000249,2]
[331580983,1720543838492,-1000.0,0.000249,2]
[331580984,1720543838502,-3000.0,0.0002491,2]
[331580985,1720543838513,-300.0,0.00024915,2]
[331580986,1720543838522,-3000.0,0.0002492,2]
[331580987,1720543838531,-33669.2843216,0.0002492,3]
[331580988,1720543838539,-3000.0,0.0002493,2]
[331580989,1720543838549,-151.0,0.00024939,7]
[331580990,1720543838558,-5502.465161,0.00024939,7]
[331580991,1720543838569,-5502.465161,0.00024939,7]
[331580992,1720543838579,-3000.0,0.0002494,2]
[331580993,1720543838589,-318.12258394,0.00024943,2]
[331580994,1720543838599,-151.0,0.00024949,7]
[331580995,1720543838609,-11059.32147329,0.00024949,5]
[331580996,1720543838619,-17488.68076261,0.0002495,5]
[331580997,1720543838634,-70428.01791838,0.0002495,5]
[331580998,1720543838644,-67338.5686433,0.0002495,3]
[331580999,1720543838655,-3000.0,0.0002495,2]
[331581000,1720543838664,-151.0,0.0002495,7]
[331581001,1720543838674,-33669.2843216,0.0002495,3]
[331581002,1720543838684,-5502.465161,0.0002495,7]
[331581003,1720543838694,-5502.465161,0.0002495,7]
[331581004,1720543838705,-5502.465161,0.00024959,7]
[331581005,1720543838716,-5502.465161,0.00024959,7]
[331581006,1720543838726,-3000.0,0.0002496,2]
[331581007,1720543838737,-1500.0,0.0002496,5]
[331581008,1720543838747,-1500.0,0.0002496,5]
[331581009,1720543838759,-1500.0,0.0002496,5]
[331581010,1720543838770,-1500.0,0.0002496,5]
[331581011,1720543838780,-1500.0,0.0002496,5]
[331581012,1720543838790,-1500.0,0.0002496,5]
[331581013,1720543838800,-1500.0,0.0002496,5]
[331581014,1720543838810,-1500.0,0.0002496,5]
[331581015,1720543838820,-1500.0,0.0002496,5]
[331581016,1720543838829,-1500.0,0.0002496,5]
[331581017,1720543838839,-1500.0,0.0002496,5]
[331581018,1720543838850,-1500.0,0.0002496,5]
[331581019,1720543838918,-1500.0,0.0002496,5]
[331581020,1720543838928,-1500.0,0.0002496,5]
[331581021,1720543838938,-1500.0,0.0002496,5]
[331581022,1720543838948,-1500.0,0.0002496,5]
[331581023,1720543838958,-1500.0,0.0002496,5]
[331581024,1720543838969,-1500.0,0.0002496,5]
[331581025,1720543838979,-1500.0,0.0002496,5]
[331581026,1720543838988,-1500.0,0.0002496,5]
[331581027,1720543838998,-1500.0,0.0002496,5]
[331581028,1720543839010,-1500.0,0.0002496,5]
[331581029,1720543839020,-1500.0,0.0002496,5]
[331581030,1720543839030,-1500.0,0.0002496,5]
[331581031,1720543839040,-1500.0,0.0002496,5]
[331581032,1720543839051,-1500.0,0.0002496,5]
[331581033,1720543839061,-1500.0,0.0002496,5]
[331581034,1720543839072,-1500.0,0.0002496,5]
[331581035,1720543839082,-1500.0,0.0002496,5]
[331581036,1720543839092,-1500.0,0.0002496,5]
[331581037,1720543839102,-1500.0,0.0002496,5]
[331581038,1720543839112,-1500.0,0.0002496,5]
[331581039,1720543839122,-1500.0,0.0002496,5]
[331581040,1720543839133,-1500.0,0.0002496,5]
[331581041,1720543839144,-1500.0,0.0002496,5]
[331581042,1720543839155,-1500.0,0.0002496,5]
[331581043,1720543839166,-1500.0,0.0002496,5]
[331581044,1720543839176,-1500.0,0.0002496,5]
[331581045,1720543839186,-1500.0,0.0002496,5]
[331581046,1720543839196,-1500.0,0.0002496,5]
[331581047,1720543839206,-1500.0,0.0002496,5]
[331581048,1720543839216,-1500.0,0.0002496,5]
[331581049,1720543839226,-727.159863,0.0002496,5]
[331581050,1720543839236,-151.0,0.0002496,7]
[331581051,1720543839247,-151.0,0.0002496,7]
[331581052,1720543839257,-151.0,0.0002496,7]
[331581053,1720543839268,-5502.465161,0.0002496,7]
[331581054,1720543839278,-5502.465161,0.0002496,7]
[331581055,1720543839288,-5502.465161,0.0002496,7]
[331581056,1720543839298,-5502.465161,0.0002496,7]
[331581057,1720543839307,-5502.465161,0.0002496,7]
[331581058,1720543839316,-5502.465161,0.0002496,7]
[331581059,1720543839326,-3000.0,0.0002497,2]
[331581060,1720543839336,-3000.0,0.0002498,2]
[331581061,1720543839346,-76022.07849578,0.0002499,2]
[331581062,1720543839356,-3000.0,0.0002499,2]
[331581063,1720543839366,-151.0,0.0002499,7]
[331581064,1720543839376,-5502.465161,0.0002499,7]
[331581065,1720543839386,-5502.465161,0.0002499,7]
[331581066,1720543839396,-394.11469993,0.00025,30]
[331581067,1720543839406,-1851.34621195,0.00025,2]
[331581068,1720543839416,-7427.1094573,0.00025,60]
[331581069,1720543839426,-1025.43091416,0.00025,2]
[331581070,1720543839436,-45100.66836002,0.00025,2]
[331581071,1720543839446,-5000.0,0.00025,2]
[331581072,1720543839458,-154.79103211,0.00025,2]
[331581073,1720543839467,-5502.465161,0.00025,7]
[331581074,1720543839477,-5502.465161,0.00025,7]
[331581075,1720543839487,-2413.33049809,0.00025051,2]
[331581076,1720543839496,-45740.23337172,0.00025101,2]
[331581077,1720543840031,-5337.52712167,0.00025101,2]
[331581078,1720543840040,-5502.465161,0.00025101,7]
[331581079,1720543840050,-5502.465162,0.00025101,7]
[331581080,1720543840059,-2413.33049809,0.00025226,2]
[331581081,1720543840068,-2578.2088657,0.00025319,2]
[331581082,1720543840078,-1000.0,0.00025321,2]
[331581083,1720543840087,-2413.33049809,0.00025401,2]
[331581084,1720543840096,-300.0,0.00025408,2]
[331581085,1720543840106,-30000.0,0.00025501,2]
[331581086,1720543840115,-100069.52116256,0.00025501,2]
[331581087,1720543840124,-189.22156458,0.00025869,2]
[331581088,1720543840134,-1136.28120194,0.00025869,30]
[331581089,1720543840144,-150.0,0.000259,2]
[331581090,1720543840154,-1000.0,0.00026,26]
[331581091,1720543840164,-323.94,0.00026138,3]
[331581092,1720543840173,-7458.94652043,0.0002649,2]
[331581093,1720543840183,-2058.61750007,0.000266,2]
[331581094,1720543840192,-707.831476,0.00027195,2]
[331581095,1720543840202,-188.646553,0.00027195,2]
[331581096,1720543840211,-3000.0,0.000273,2]
[331581097,1720543840220,-3000.0,0.0002731,2]
[331581098,1720543840229,-3000.0,0.0002732,2]
[331581099,1720543840238,-3000.0,0.0002733,2]
[331581100,1720543840247,-3000.0,0.0002734,2]
[331581102,1720543840256,-3000.0,0.0002735,2]
[331581104,1720543840266,-3000.0,0.0002736,2]
[331581105,1720543840275,-3000.0,0.0002737,2]
[331581107,1720543840284,-3000.0,0.0002738,2]
[331581109,1720543840294,-3000.0,0.0002739,2]
[331581111,1720543840304,-500.0,0.00027397,2]
[331581113,1720543840313,-500.0,0.00027397,2]
[331581116,1720543840323,-690.23747046,0.00027397,2]
[331581118,1720543840332,-500.0,0.00027397,2]
[331581119,1720543840342,-500.0,0.00027397,2]
[331581121,1720543840351,-690.23747046,0.00027397,2]
[331581124,1720543840361,-500.0,0.00027397,2]
[331581126,1720543840370,-690.23747046,0.00027397,2]
[331581127,1720543840379,-500.0,0.00027397,2]
[331581130,1720543840389,-500.0,0.00027397,2]
[331581132,1720543840398,-690.23747046,0.00027397,2]
[331581134,1720543840407,-393.03444498,0.00027397,2]
[331581136,1720543840417,-246.84650679,0.00027397,2]
[331581137,1720543840426,-690.23747046,0.00027397,2]
[331581139,1720543840435,-500.0,0.00027397,2]
[331581141,1720543840446,-690.23747046,0.00027397,2]
[331581144,1720543840455,-500.0,0.00027397,2]
[331581146,1720543840465,-690.23747046,0.00027397,2]
[331581148,1720543840475,-500.0,0.00027397,2]
[331581150,1720543840484,-690.23747046,0.00027397,2]
[331581151,1720543840494,-690.23747046,0.00027397,2]
[331581154,1720543840503,-690.23747046,0.00027397,2]
[331581155,1720543840515,-690.23747046,0.00027397,2]
[331581157,1720543840524,-690.23747046,0.00027397,2]
[331581160,1720543840535,-690.23747046,0.00027397,2]
[331581161,1720543840546,-690.23747046,0.00027397,2]
[331581163,1720543840555,-690.23747046,0.00027397,2]
[331581166,1720543840565,-690.23747046,0.00027397,2]
[331581167,1720543840574,-690.23747046,0.00027397,2]
[331581169,1720543840584,-690.23747046,0.00027397,2]
[331581172,1720543840593,-690.23747046,0.00027397,2]
[331581173,1720543840603,-690.23747046,0.00027397,2]
[331581176,1720543840612,-690.23747046,0.00027397,2]
[331581178,1720543840621,-690.23747046,0.00027397,2]
[331581179,1720543840630,-690.23747046,0.00027397,2]
[331581182,1720543840640,-690.23747046,0.00027397,2]
[331581184,1720543840649,-690.23747046,0.00027397,2]
[331581185,1720543840658,-690.23747046,0.00027397,2]
[331581187,1720543840668,-690.23747046,0.00027397,2]
[331581190,1720543840677,-690.23747046,0.00027397,2]
[331581191,1720543840686,-690.23747046,0.00027397,2]
[331581194,1720543840695,-690.23747046,0.00027397,2]
[331581196,1720543840705,-690.23747046,0.00027397,2]
[331581198,1720543840715,-690.23747046,0.00027397,2]
[331581200,1720543840725,-690.23747046,0.00027397,2]
[331581201,1720543840734,-690.23747046,0.00027397,2]
[331581204,1720543840743,-690.23747046,0.00027397,2]
[331581206,1720543840753,-690.23747046,0.00027397,2]
[331581208,1720543840764,-690.23747046,0.00027397,2]
[331581210,1720543840773,-690.23747046,0.00027397,2]
[331581216,1720543840830,-690.23747046,0.00027397,2]
[331581218,1720543840839,-690.23747046,0.00027397,2]
[331581220,1720543840848,-690.23747046,0.00027397,2]
[331581222,1720543840858,-690.23747046,0.00027397,2]
[331581224,1720543840867,-690.23747046,0.00027397,2]
[331581226,1720543840878,-690.23747046,0.00027397,2]
[331581228,1720543840887,-690.23747046,0.00027397,2]
[331581230,1720543840896,-690.23747046,0.00027397,2]
[331581232,1720543840905,-690.23747046,0.00027397,2]
[331581234,1720543840916,-690.23747046,0.00027397,2]
[331581236,1720543840926,-690.23747046,0.00027397,2]
[331581238,1720543840935,-690.23747046,0.00027397,2]
[331581240,1720543840945,-690.23747046,0.00027397,2]
[331581242,1720543840955,-690.23747046,0.00027397,2]
[331581244,1720543840964,-690.23747046,0.00027397,2]
[331581246,1720543840973,-690.23747046,0.00027397,2]
[331581248,1720543840983,-267.905858,0.00027397,7]
[331581250,1720543840992,-267.905858,0.00027397,7]
[331581252,1720543841001,-267.905858,0.00027397,7]
[331581254,1720543841011,-267.905858,0.00027397,7]
[331581256,1720543841019,-267.905858,0.00027397,7]
[331581258,1720543841029,-267.905858,0.00027397,7]
[331581260,1720543841038,-267.905858,0.00027397,7]
[331581262,1720543841047,-267.905858,0.00027397,7]
[331581264,1720543841056,-267.905858,0.00027397,7]
[331581266,1720543841065,-267.905858,0.00027397,7]
[331581268,1720543841074,-267.905858,0.00027397,7]
[331581270,1720543841083,-267.905858,0.00027397,7]
[331581272,1720543841091,-267.905858,0.00027397,7]
[331581274,1720543841100,-267.905858,0.00027397,7]
[331581276,1720543841110,-267.905858,0.00027397,7]
[331581278,1720543841119,-267.905858,0.00027397,7]
[331581280,1720543841129,-267.905858,0.00027397,7]
[331581282,1720543841138,-267.905858,0.00027397,7]
[331581284,1720543841148,-267.905858,0.00027397,7]
[331581286,1720543841159,-267.90586,0.00027397,7]
[331581289,1720543841170,-151.0,0.00027397,7]
[331581292,1720543841190,-151.0,0.00027397,7]
[331581295,1720543841207,-151.0,0.00027397,7]
[331581298,1720543841227,-279.448186,0.00027397,7]
[331581301,1720543841248,-264.705373,0.00027397,7]
[331581304,1720543841267,-264.705373,0.00027397,7]
[331581307,1720543841283,-264.705373,0.00027397,7]
[331581310,1720543841300,-264.705373,0.00027397,7]
[331581312,1720543841315,-264.705373,0.00027397,7]
[331581315,1720543841333,-264.705373,0.00027397,7]
[331581318,1720543841353,-264.705373,0.00027397,7]
[331581321,1720543841369,-264.705373,0.00027397,7]
[331581323,1720543841381,-264.705373,0.00027397,7]
[331581326,1720543841400,-264.705373,0.00027397,7]
[331581329,1720543841414,-264.705373,0.00027397,7]
[331581332,1720543841430,-264.705373,0.00027397,7]